bitfinex/quotes_SOLUSD_20230702
["timestamp","ask_amount","ask_price","bid_price","bid_amount"]
[1688272564948,22.141,19.105,19.089,79.205]
[1688272565146,22.141,19.105,19.094,79.184]
[1688272565553,22.141,19.105,19.098,22.148]
[1688272565950,99.4277,19.109,19.098,22.148]
[1688272566152,22.137,19.108,19.098,32.98519922]
[1688272566373,22.134,19.111,19.103,22.142]
[1688272566965,22.134,19.111,19.101,22.144]
[1688272567275,22.134,19.111,19.102,22.143]
[1688272568663,55.0,19.11,19.102,22.143]
[1688272568853,22.137,19.109,19.102,22.143]
[1688272569170,77.138,19.108,19.102,22.143]
[1688272569668,22.135,19.11,19.102,22.143]
[1688272569859,22.134,19.111,19.102,32.98019922]
[1688272570053,121.5587,19.113,19.102,32.98019922]
[1688272570258,7.98061067,19.122,19.103,10.83719922]
[1688272570566,22.117,19.126,19.108,183.109]
[1688272570774,129.90675267,19.128,19.108,183.109]
[1688272570964,129.90675267,19.128,19.108,193.94619922]
[1688272571162,22.118,19.125,19.108,79.125]
[1688272571356,22.118,19.125,19.109,20.0]
[1688272571555,30.09861067,19.125,19.111,22.133]
[1688272571756,7.98061067,19.124,19.111,22.133]
[1688272572072,22.123,19.121,19.111,22.133]
[1688272574075,22.121,19.123,19.111,22.133]
[1688272576364,30.10161067,19.123,19.1,80.19863348]
[1688272576674,19.53,19.12,19.107,22.137]
[1688272576862,79.094,19.117,19.105,22.14]
[1688272577459,55.0,19.116,19.105,22.14]
[1688272577765,55.0,19.116,19.103,22.142]
[1688272577766,22.131,19.113,19.103,22.142]
[1688272577967,55.0,19.112,19.103,22.142]
[1688272578268,22.135,19.11,19.103,22.142]
[1688272578474,55.0,19.109,19.103,22.142]
[1688272578659,22.138,19.108,19.101,22.144]
[1688272578862,22.138,19.108,19.094,69.90144446]
[1688272579173,55.0,19.107,19.097,55.0]
[1688272579369,22.139,19.106,19.1,22.146]
[1688272579671,56.977,19.113,19.1,22.146]
[1688272579871,22.136,19.109,19.1,22.146]
[1688272580057,22.139,19.107,19.1,44.292]
[1688272580257,22.139,19.107,19.095,57.028]
[1688272580258,79.133,19.107,19.08,39.28]
[1688272580458,27.65061067,19.11,19.092,22.154]
[1688272580459,22.148,19.099,19.092,22.154]
[1688272580965,22.148,19.099,19.091,57.007]
[1688272581460,22.148,19.099,19.08,35.45340027]
[1688272581461,79.19,19.094,19.07,9.74]
[1688272581663,79.19,19.094,19.071,30.0]
[1688272581879,55.0,19.093,19.072,12.12905]
[1688272582071,22.161,19.088,19.076,57.084]
[1688272582273,22.161,19.088,19.078,22.171]
[1688272582570,22.164,19.085,19.078,22.171]
[1688272582965,22.164,19.085,19.079,42.169]
[1688272584264,22.164,19.085,19.079,22.169]
[1688272584967,22.162,19.087,19.079,22.169]
[1688272585967,55.0,19.086,19.079,22.169]
[1688272586160,22.164,19.085,19.079,22.169]
[1688272586377,22.159,19.09,19.079,33.00619922]
[1688272586568,22.159,19.09,19.08,10.83719922]
[1688272586784,22.159,19.09,19.083,22.166]
[1688272586967,57.032,19.095,19.083,22.166]
[1688272587896,22.157,19.091,19.083,22.166]
[1688272588686,22.159,19.089,19.083,22.166]
[1688272590388,55.0,19.088,19.083,22.166]
[1688272590685,22.161,19.087,19.08,10.83719922]
[1688272590874,92.3523,19.094,19.083,22.166]
[1688272591069,57.027,19.097,19.083,22.166]
[1688272591265,92.3523,19.099,19.084,10.83719922]
[1688272591467,104.028,19.101,19.084,10.83719922]
[1688272591468,22.146,19.101,19.088,22.159]
[1688272591965,149.3523,19.106,19.089,30.83719922]
[1688272592184,149.3523,19.106,19.094,22.153]
[1688272593073,149.3523,19.106,19.094,79.192]
[1688272593381,22.144,19.102,19.094,79.192]
[1688272593975,22.144,19.102,19.094,57.039]
[1688272594369,22.144,19.102,19.089,30.83719922]
[1688272594574,55.0,19.101,19.093,22.154]
[1688272594782,22.148,19.099,19.093,22.154]
[1688272595085,22.148,19.099,19.093,52.991199]
[1688272596180,22.146,19.101,19.093,52.991199]
[1688272596682,92.3523,19.106,19.093,52.991199]
[1688272597992,92.3523,19.106,19.093,110.027199]
[1688272598177,55.0,19.105,19.093,110.027199]
[1688272598782,79.145,19.104,19.093,30.837199]
[1688272598977,55.0,19.103,19.093,30.837199]
[1688272599273,22.146,19.1,19.093,52.991199]
[1688272600386,22.146,19.1,19.093,30.837199]
[1688272601678,22.146,19.1,19.093,52.990199]
[1688272603180,22.149,19.098,19.093,30.837199]
[1688272603576,112.018,19.099,19.082,57.067]
[1688272603577,22.151,19.096,19.088,22.16]
[1688272603895,22.151,19.096,19.089,20.0]
[1688272604291,22.151,19.096,19.088,77.16]
[1688272604487,55.0,19.095,19.089,20.0]
[1688272604691,22.154,19.094,19.089,20.0]
[1688272605597,22.154,19.094,19.09,22.158]
[1688272605808,22.154,19.094,19.089,20.0]
[1688272605999,57.008,19.103,19.089,42.159]
[1688272606298,22.147,19.099,19.089,42.159]
[1688272606495,22.151,19.096,19.089,42.159]
[1688272607282,22.151,19.096,19.088,55.0]
[1688272607484,22.151,19.096,19.079,57.075]
[1688272607485,55.0,19.095,19.079,57.075]
[1688272607782,22.157,19.091,19.084,22.165]
[1688272607982,55.0,19.09,19.084,22.165]
[1688272608185,22.16,19.089,19.084,22.165]
[1688272608594,22.16,19.089,19.082,22.166]
[1688272609592,22.162,19.087,19.082,22.166]
[1688272612897,22.162,19.087,19.08,22.169]
[1688272613091,22.164,19.085,19.08,22.169]
[1688272613404,77.165,19.084,19.08,22.169]
[1688272613593,22.165,19.084,19.079,55.0]
[1688272614401,22.165,19.084,19.073,57.096]
[1688272614402,22.165,19.084,19.077,22.172]
[1688272614599,55.0,19.083,19.077,22.172]
[1688272614809,22.168,19.082,19.077,22.172]
[1688272615100,55.0,19.081,19.074,55.0]
[1688272615310,22.17,19.08,19.076,22.174]
[1688272615489,22.17,19.08,19.074,22.175]
[1688272617001,22.172,19.078,19.073,22.177]
[1688272618085,22.172,19.078,19.073,44.354]
[1688272618290,97.4417,19.087,19.073,44.354]
[1688272618291,154.4987,19.087,19.073,44.354]
[1688272618488,22.171,19.079,19.073,44.354]
[1688272620404,22.171,19.079,19.073,22.177]
[1688272621208,22.171,19.079,19.066,104.214]
[1688272621209,22.171,19.079,19.07,22.18]
[1688272621505,55.0,19.078,19.064,67.95719922]
[1688272621806,22.176,19.074,19.068,22.183]
[1688272622007,22.176,19.074,19.069,20.0]
[1688272622209,55.0,19.078,19.069,42.181]
[1688272622395,55.0,19.079,19.069,22.181]
[1688272622598,22.176,19.075,19.065,20.0]
[1688272622804,55.0,19.074,19.065,42.186]
[1688272623092,77.177,19.074,19.065,42.186]
[1688272623494,55.0,19.074,19.065,99.306]
[1688272623706,77.176,19.074,19.065,99.306]
[1688272624097,77.176,19.074,19.065,42.186]
[1688272625408,77.176,19.074,19.065,22.186]
[1688272625987,77.176,19.074,19.063,22.188]
[1688272626190,22.176,19.074,19.063,136.448]
[1688272626703,22.176,19.074,19.063,79.322]
[1688272627592,22.181,19.07,19.063,79.322]
[1688272628196,22.181,19.07,19.061,22.191]
[1688272628398,55.0,19.069,19.061,22.191]
[1688272628700,22.185,19.067,19.061,22.191]
[1688272629096,77.183,19.069,19.061,22.191]
[1688272629305,55.0,19.069,19.059,57.093]
[1688272629603,77.182,19.069,19.059,79.286]
[1688272632507,77.182,19.069,19.059,57.093]
[1688272633419,77.182,19.069,19.06,22.192]
[1688272633590,91.3002,19.078,19.06,194.41319922]
[1688272633823,91.2172,19.087,19.061,74.9505578]
[1688272634110,22.169,19.081,19.068,79.29]
[1688272634310,22.169,19.081,19.072,22.178]
[1688272634691,9.71,19.08,19.059,57.136]
[1688272634890,22.177,19.074,19.063,22.188]
[1688272635494,55.0,19.073,19.063,22.188]
[1688272635697,22.181,19.07,19.063,22.188]
[1688272637307,22.181,19.07,19.059,79.305]
[1688272637308,55.0,19.069,19.06,22.192]
[1688272637612,22.182,19.07,19.06,22.192]
[1688272638213,22.184,19.068,19.06,22.192]
[1688272638395,22.184,19.068,19.053,10.83719922]
[1688272638396,22.184,19.068,19.055,57.149]
[1688272638598,55.0,19.067,19.058,22.194]
[1688272638798,22.188,19.065,19.058,22.194]
[1688272639415,22.188,19.065,19.058,44.388]
[1688272640203,9.71,19.08,19.058,44.388]
[1688272640400,22.177,19.074,19.059,20.0]
[1688272640720,22.177,19.074,19.063,79.312]
[1688272640905,22.177,19.074,19.063,22.188]
[1688272641598,55.0,19.073,19.063,22.188]
[1688272641914,22.181,19.071,19.063,22.188]
[1688272642096,79.283,19.071,19.061,22.191]
[1688272642296,22.185,19.067,19.059,22.193]
[1688272642516,55.0,19.066,19.059,22.193]
[1688272642814,22.188,19.064,19.058,22.194]
[1688272643018,22.188,19.064,19.059,20.0]
[1688272643325,22.188,19.064,19.056,22.196]
[1688272644000,22.192,19.061,19.056,22.196]
[1688272644197,22.192,19.061,19.056,44.392]
[1688272644608,22.192,19.061,19.056,22.196]
[1688272644807,22.192,19.061,19.044,25.76447151]
[1688272644808,22.195,19.058,19.043,161.523]
[1688272645014,22.195,19.058,19.044,20.0]
[1688272645203,22.195,19.058,19.049,22.204]
[1688272646002,90.9623,19.067,19.049,22.204]
[1688272646315,22.194,19.06,19.049,22.204]
[1688272647614,22.191,19.062,19.049,22.204]
[1688272647819,57.121,19.065,19.049,33.04119922]
[1688272648010,55.0,19.064,19.049,33.04119922]
[1688272648210,22.192,19.061,19.049,22.204]
[1688272648516,22.196,19.057,19.049,22.204]
[1688272649901,77.193,19.06,19.049,79.372]
[1688272650105,55.0,19.06,19.049,79.372]
[1688272650306,22.194,19.059,19.049,79.372]
[1688272650522,55.0,19.058,19.049,22.204]
[1688272650717,22.197,19.056,19.049,22.204]
[1688272651021,77.196,19.058,19.049,22.204]
[1688272651202,55.0,19.058,19.049,79.372]
[1688272651407,77.195,19.058,19.049,79.372]
[1688272651603,77.195,19.058,19.049,22.204]
[1688272652210,77.195,19.058,19.043,206.13949922]
[1688272652211,134.336,19.058,19.043,90.9623]
[1688272652606,77.195,19.058,19.043,90.9623]
[1688272652910,77.195,19.058,19.045,22.209]
[1688272653711,95.4171,19.057,19.045,22.209]
[1688272653908,19.66,19.06,19.045,22.209]
[1688272653909,22.193,19.06,19.045,33.04619922]
[1688272654212,22.193,19.06,19.05,22.204]
[1688272654811,79.328,19.06,19.05,22.204]
[1688272655416,22.193,19.06,19.05,22.204]
[1688272656021,22.196,19.058,19.05,22.204]
[1688272656215,55.0,19.057,19.05,22.204]
[1688272656419,83.45709788,19.063,19.05,22.204]
[1688272657022,26.33009788,19.063,19.045,68.01819922]
[1688272657224,22.195,19.059,19.05,22.204]
[1688272657823,22.196,19.057,19.05,22.204]
[1688272658016,57.128,19.063,19.05,22.204]
[1688272658017,77.197,19.056,19.05,22.204]
[1688272658418,55.0,19.056,19.05,22.204]
[1688272659524,55.0,19.057,19.05,22.204]
[1688272662614,77.196,19.057,19.05,22.204]
[1688272663124,77.196,19.057,19.049,22.205]
[1688272663335,77.196,19.057,19.05,42.204]
[1688272664116,55.0,19.057,19.05,42.204]
[1688272664320,55.0,19.058,19.05,22.204]
[1688272664525,55.0,19.058,19.037,104.373]
[1688272664526,22.197,19.057,19.037,104.373]
[1688272664824,55.0,19.056,19.043,22.212]
[1688272665123,22.202,19.053,19.043,22.212]
[1688272665321,55.0,19.052,19.043,22.212]
[1688272665518,22.205,19.05,19.043,22.212]
[1688272665728,55.0,19.049,19.043,22.212]
[1688272666741,77.206,19.049,19.043,22.212]
[1688272666938,77.206,19.049,19.034,10.83719922]
[1688272667231,77.206,19.049,19.035,20.0]
[1688272667532,77.206,19.049,19.02,19.62]
[1688272667533,134.374,19.049,19.02,19.62]
[1688272667718,7.98061067,19.048,19.026,22.231]
[1688272667918,183.756,19.042,19.025,22.233]
[1688272668424,183.756,19.042,19.025,22.232]
[1688272668425,55.0,19.041,19.025,22.232]
[1688272668627,22.22,19.037,19.025,22.232]
[1688272668844,55.0,19.036,19.025,22.232]
[1688272669016,22.223,19.035,19.025,22.232]
[1688272669216,55.0,19.036,19.026,20.0]
[1688272669428,22.222,19.035,19.027,22.23]
[1688272669621,55.0,19.034,19.027,22.23]
[1688272669818,22.225,19.032,19.028,20.0]
[1688272670222,22.225,19.032,19.028,42.23]
[1688272670426,77.224,19.034,19.028,42.23]
[1688272670628,55.0,19.034,19.028,42.23]
[1688272671124,57.191,19.042,19.028,42.23]
[1688272671325,55.0,19.04,19.028,42.23]
[1688272671524,22.219,19.038,19.028,42.23]
[1688272671827,55.0,19.037,19.028,42.23]
[1688272672130,22.22,19.037,19.028,42.23]
[1688272672328,22.217,19.039,19.028,42.23]
[1688272672521,22.22,19.037,19.028,42.23]
[1688272673118,104.322,19.047,19.028,261.118]
[1688272673317,113.7506,19.041,19.028,156.693]
[1688272673516,22.216,19.041,19.028,167.53019922]
[1688272673933,22.216,19.041,19.032,22.225]
[1688272675036,22.219,19.038,19.032,22.225]
[1688272676237,22.219,19.038,19.03,22.227]
[1688272676537,22.219,19.038,19.029,10.83719922]
[1688272676734,22.219,19.038,19.03,20.0]
[1688272677244,22.219,19.038,19.031,22.226]
[1688272685041,22.219,19.038,19.03,20.0]
[1688272685545,22.219,19.038,19.03,42.227]
[1688272685742,22.219,19.038,19.03,20.0]
[1688272686044,22.219,19.038,19.029,20.0]
[1688272686244,55.0,19.037,19.029,20.0]
[1688272686449,22.222,19.035,19.029,42.228]
[1688272687348,22.222,19.035,19.029,20.0]
[1688272687840,22.222,19.035,19.028,42.23]
[1688272688051,55.0,19.034,19.027,42.228]
[1688272688233,22.225,19.032,19.025,22.233]
[1688272688744,22.223,19.035,19.025,33.07019922]
[1688272688951,22.221,19.036,19.026,20.0]
[1688272689150,57.189,19.042,19.029,22.229]
[1688272689340,199.998,19.046,19.03,20.0]
[1688272689532,22.215,19.041,19.033,22.223]
[1688272689848,22.215,19.041,19.03,20.0]
[1688272690050,22.215,19.041,19.032,22.224]
[1688272690432,22.215,19.041,19.027,20.0]
[1688272690741,22.215,19.041,19.031,22.226]
[1688272691731,22.219,19.038,19.031,22.226]
[1688272692245,55.0,19.037,19.031,22.226]
[1688272692433,22.219,19.038,19.031,22.226]
[1688272694249,55.0,19.037,19.031,22.226]
[1688272695136,22.22,19.037,19.031,22.226]
[1688272696151,22.223,19.035,19.029,22.228]
[1688272696345,22.223,19.035,19.03,20.0]
[1688272696649,22.223,19.035,19.03,42.227]
[1688272697428,22.222,19.035,19.03,42.227]
[1688272697641,55.0,19.036,19.03,42.227]
[1688272697642,77.221,19.036,19.03,42.227]
[1688272698135,77.221,19.036,19.03,20.0]
[1688272698333,77.221,19.036,19.026,22.233]
[1688272698334,77.221,19.036,19.027,20.0]
[1688272698639,77.221,19.036,19.027,42.231]
[1688272698640,22.223,19.035,19.027,42.231]
[1688272698834,22.223,19.035,19.027,22.231]
[1688272698835,55.0,19.034,19.027,22.231]
[1688272699147,22.225,19.032,19.023,10.83719922]
[1688272699654,22.225,19.032,19.023,65.83719922]
[1688272699948,22.226,19.032,19.025,22.233]
[1688272700865,26.77245382,19.047,19.026,20.0]
[1688272701154,117.9393,19.044,19.031,79.447]
[1688272702341,117.9393,19.044,19.031,22.226]
[1688272702746,55.0,19.043,19.031,22.226]
[1688272703053,22.217,19.04,19.031,22.226]
[1688272703743,95.7283,19.044,19.031,22.226]
[1688272703948,39.08,19.06,19.031,33.06319922]
[1688272704140,155.2094,19.057,19.032,130.58158795]
[1688272704343,22.202,19.053,19.039,183.773]
[1688272704536,22.202,19.053,19.04,20.0]
[1688272704851,22.202,19.053,19.043,22.211]
[1688272705441,22.202,19.053,19.041,22.214]
[1688272706143,22.202,19.053,19.041,33.05119922]
[1688272707056,22.202,19.053,19.045,22.21]
[1688272709953,55.0,19.052,19.045,22.21]
[1688272710148,22.204,19.051,19.045,22.21]
[1688272710955,55.0,19.05,19.043,22.211]
[1688272712763,77.205,19.05,19.043,22.211]
[1688272715142,77.205,19.05,19.04,20.0]
[1688272715347,77.205,19.05,19.038,22.217]
[1688272715348,96.915,19.05,19.038,22.217]
[1688272715553,96.915,19.05,19.029,57.227]
[1688272715764,104.89561067,19.05,19.03,20.0]
[1688272716377,184.10561067,19.05,19.031,22.225]
[1688272716554,176.125,19.05,19.031,22.225]
[1688272721076,98.55,19.04,19.015,26.70228024]
[1688272721254,98.55,19.04,19.01,98.18]
[1688272721255,22.225,19.033,19.022,22.236]
[1688272721454,98.57,19.04,19.022,79.485]
[1688272721455,22.223,19.034,19.022,79.485]
[1688272721659,77.224,19.033,19.022,22.236]
[1688272721854,77.224,19.033,19.015,53.366248]
[1688272721855,77.224,19.033,19.017,57.263]
[1688272722249,77.224,19.033,19.022,22.236]
[1688272723951,19.67,19.03,19.02,22.238]
[1688272724155,22.231,19.027,19.02,22.238]
[1688272724372,159.398,19.033,19.02,22.238]
[1688272724373,55.0,19.033,19.02,22.238]
[1688272724672,91.0999,19.03,19.02,22.238]
[1688272724876,113.3279,19.03,19.02,22.238]
[1688272725557,91.0999,19.03,19.02,22.238]
[1688272725759,26.89842259,19.039,19.02,41.948]
[1688272725955,56.74381041,19.049,19.027,22.23]
[1688272725956,57.183,19.044,19.027,22.23]
[1688272726261,91.0999,19.047,19.033,79.437]
[1688272726262,27.45692677,19.045,19.033,79.437]
[1688272726457,27.45692677,19.045,19.033,22.223]
[1688272726458,22.212,19.044,19.033,22.223]
[1688272726762,22.212,19.044,19.033,22.224]
[1688272727461,55.0,19.043,19.033,22.224]
[1688272727657,22.215,19.041,19.033,22.224]
[1688272727971,55.0,19.04,19.033,22.224]
[1688272728156,77.216,19.04,19.033,22.224]
[1688272729863,77.216,19.04,19.031,22.225]
[1688272730854,77.216,19.04,19.025,57.233]
[1688272731161,77.216,19.04,19.027,22.23]
[1688272731162,96.776,19.04,19.027,22.23]
[1688272731470,96.776,19.04,19.025,22.233]
[1688272731659,96.776,19.04,19.023,22.235]
[1688272731866,104.75661067,19.04,19.023,22.235]
[1688272733973,7.98061067,19.039,19.023,22.235]
[1688272734177,79.435,19.035,19.023,22.235]
[1688272734677,22.227,19.031,19.023,22.235]
[1688272734871,55.0,19.03,19.023,22.235]
[1688272735061,22.225,19.033,19.023,22.235]
[1688272735376,22.227,19.031,19.023,22.235]
[1688272736260,22.227,19.031,19.013,44.99332003]
[1688272736581,22.227,19.031,19.016,22.244]
[1688272736582,79.449,19.031,19.016,22.244]
[1688272736884,22.232,19.027,19.017,42.242]
[1688272737178,77.233,19.026,19.017,42.242]
[1688272737357,55.0,19.026,19.017,42.242]
[1688272737759,55.0,19.027,19.017,42.242]
[1688272737961,77.231,19.027,19.017,42.242]
[1688272738671,55.0,19.027,19.017,42.242]
[1688272738874,55.0,19.028,19.017,42.242]
[1688272739871,77.23,19.028,19.017,42.242]
[1688272742279,22.229,19.03,19.017,42.242]
[1688272742968,22.229,19.03,19.017,22.242]
[1688272743857,22.233,19.026,19.017,22.242]
[1688272744063,22.235,19.024,19.017,22.242]
[1688272744276,55.0,19.023,19.017,22.242]
[1688272744480,77.236,19.023,19.017,22.242]
[1688272744781,22.236,19.023,19.017,22.242]
[1688272744971,57.233,19.028,19.017,22.242]
[1688272744972,77.237,19.022,19.017,22.242]
[1688272746176,55.0,19.022,19.017,22.242]
[1688272746376,22.235,19.024,19.017,22.242]
[1688272746575,104.405,19.032,19.01,104.522]
[1688272746576,57.219,19.033,19.022,22.236]
[1688272746878,22.228,19.03,19.022,22.236]
[1688272748670,22.228,19.03,19.015,57.233]
[1688272748870,22.228,19.03,19.011,10.83719922]
[1688272748871,22.233,19.026,19.019,22.24]
[1688272749076,77.234,19.025,19.02,42.239]
[1688272749280,77.234,19.025,19.02,22.239]
[1688272749485,77.234,19.025,19.021,20.0]
[1688272750679,77.234,19.025,19.018,22.241]
[1688272751788,77.234,19.025,19.016,22.243]
[1688272753275,134.474,19.025,19.014,22.245]
[1688272754083,134.474,19.025,19.009,57.281]
[1688272754392,134.474,19.025,19.01,20.0]
[1688272754903,134.474,19.025,19.005,42.251]
[1688272755583,134.474,19.025,19.007,22.254]
[1688272755794,134.474,19.025,19.008,37.253]
[1688272756087,134.474,19.025,19.008,22.253]
[1688272756402,79.474,19.025,19.008,22.253]
[1688272757775,22.24,19.02,19.008,22.253]
[1688272757985,22.244,19.016,19.011,22.249]
[1688272758196,55.0,19.015,19.012,42.248]
[1688272758400,55.0,19.015,19.012,20.0]
[1688272759002,77.246,19.015,19.012,20.0]
[1688272759376,55.0,19.015,19.011,42.249]
[1688272759574,77.245,19.015,19.011,20.0]
[1688272759776,77.245,19.015,18.996,26.72524185]
[1688272759777,55.0,19.015,19.001,20.0]
[1688272759993,39.32,19.03,19.005,22.257]
[1688272760195,79.487,19.022,19.005,22.257]
[1688272760377,183.944,19.022,19.01,22.251]
[1688272760580,183.944,19.022,19.011,20.0]
[1688272760797,22.238,19.022,19.011,22.249]
[1688272760996,22.238,19.022,19.012,42.248]
[1688272761185,79.487,19.022,19.012,20.0]
[1688272761586,79.487,19.022,19.004,20.0]
[1688272761787,79.487,19.022,19.012,22.248]
[1688272761986,22.241,19.019,19.012,22.248]
[1688272762199,55.0,19.018,19.012,22.248]
[1688272762581,77.242,19.018,19.012,22.248]
[1688272762794,93.7889,19.026,19.012,22.248]
[1688272762998,22.236,19.023,19.012,22.248]
[1688272764787,22.236,19.023,19.012,20.748]
[1688272766792,55.0,19.022,19.012,20.748]
[1688272766996,22.24,19.019,19.012,20.748]
[1688272767203,55.0,19.018,19.012,20.748]
[1688272767510,55.0,19.022,19.012,20.748]
[1688272767801,22.238,19.021,19.012,20.748]
[1688272768009,22.242,19.018,19.012,20.748]
[1688272768178,77.244,19.017,19.012,20.748]
[1688272768382,22.244,19.017,19.006,57.294]
[1688272768687,22.246,19.014,19.007,20.0]
[1688272768992,77.245,19.016,19.007,20.0]
[1688272769192,77.245,19.016,19.004,20.0]
[1688272769694,55.0,19.016,19.004,20.0]
[1688272769894,77.244,19.016,19.004,20.0]
[1688272770290,55.0,19.016,19.004,20.0]
[1688272770799,77.244,19.016,19.004,20.0]
[1688272772901,55.0,19.016,19.004,20.0]
[1688272773095,77.244,19.016,19.004,20.0]
[1688272773798,55.0,19.016,19.004,20.0]
[1688272773981,22.244,19.016,19.004,20.0]
[1688272774186,55.0,19.015,19.004,20.0]
[1688272774583,55.0,19.016,19.004,20.0]
[1688272774784,77.245,19.016,19.004,20.0]
[1688272775190,77.245,19.016,19.001,20.0]
[1688272775499,26.7204601,19.021,19.01,19.56]
[1688272775703,27.48828599,19.025,19.011,20.0]
[1688272775903,27.48828599,19.025,19.014,184.02]
[1688272776203,22.237,19.022,19.014,22.246]
[1688272776898,79.486,19.022,19.01,19.56]
[1688272777087,22.241,19.019,19.011,20.0]
[1688272777405,22.241,19.019,19.003,20.0]
[1688272777708,55.0,19.018,19.01,19.56]
[1688272777902,22.238,19.021,19.011,20.0]
[1688272778201,77.239,19.02,19.011,20.0]
[1688272779515,77.239,19.02,19.007,37.100081]
[1688272779802,77.239,19.02,19.008,20.0]
[1688272780688,77.239,19.02,19.003,20.0]
[1688272781500,77.239,19.02,19.005,37.100081]
[1688272782003,77.239,19.02,19.006,20.0]
[1688272787804,77.239,19.02,19.003,20.0]
[1688272788005,77.239,19.02,19.005,37.100082]
[1688272788314,77.239,19.02,19.006,20.0]
[1688272790513,201.427,19.02,19.006,20.0]
[1688272790804,41.959,19.02,18.996,3.0]
[1688272791102,22.239,19.02,19.004,105.317187]
[1688272791298,19.739,19.02,19.005,20.0]
[1688272792506,55.0,19.019,19.001,20.0]
[1688272792711,22.245,19.016,19.001,20.0]
[1688272792900,55.0,19.015,19.001,20.0]
[1688272793096,55.0,19.015,19.001,59.3]
[1688272793297,96.4477,19.018,19.001,59.3]
[1688272794107,118.6897,19.018,19.001,59.3]
[1688272794812,22.244,19.016,19.001,59.3]
[1688272795012,55.0,19.015,19.001,59.3]
[1688272795793,55.0,19.015,19.006,22.255]
[1688272795998,55.0,19.015,19.007,20.0]
[1688272796306,55.0,19.015,19.009,22.252]
[1688272797001,55.0,19.015,19.01,20.0]
[1688272797595,55.0,19.015,19.002,20.0]
[1688272797795,55.0,19.016,19.002,20.0]